bitfinex-derivatives/quotes_ETHF0:USTF0_20250903
["timestamp","ask_amount","ask_price","bid_price","bid_amount"]
[1756908970292,0.248,4423.8,4423.5,0.3187]
[1756908970488,4.248,4423.8,4423.4,3.2078]
[1756908970695,1.0911,4423.5,4422.6,4.0254]
[1756908970995,0.7857,4423.3,4422.0,0.3187]
[1756908971201,3.2078,4422.9,4422.8,0.08989618]
[1756908971398,4.2415,4422.9,4421.6,3.2078]
[1756908971599,3.2078,4422.2,4421.5,1.1363]
[1756908971800,0.248,4422.1,4421.5,0.8176]
[1756908971994,0.248,4422.1,4421.5,0.3181]
[1756908972196,0.248,4422.2,4421.6,0.8054]
[1756908972396,3.2078,4422.7,4421.6,0.8054]
[1756908972592,3.2078,4422.7,4421.7,0.40701]
[1756908972794,3.2078,4422.7,4421.6,0.8054]
[1756908973002,3.2078,4422.7,4422.5,0.3181]
[1756908973198,0.248,4423.5,4422.6,0.8054]
[1756908973398,0.248,4423.4,4422.6,0.8054]
[1756908973598,0.248,4423.4,4422.7,0.8054]
[1756908973795,0.7944,4423.9,4423.0,0.3181]
[1756908974103,0.7944,4423.9,4423.1,0.8054]
[1756908974104,0.248,4423.8,4423.1,0.8054]
[1756908974402,0.248,4423.7,4423.1,0.8054]
[1756908974600,3.2078,4423.4,4423.1,0.8054]
[1756908974798,0.7944,4423.3,4422.5,0.8054]
[1756908975199,3.2078,4422.9,4422.0,3.5259]
[1756908975399,3.4558,4422.9,4422.1,0.8054]
[1756908975706,3.4558,4422.9,4422.2,0.8054]
[1756908975900,3.2078,4422.9,4422.2,0.8054]
[1756908976300,0.248,4423.0,4422.5,3.5259]
[1756908976600,0.7944,4423.9,4422.5,3.5259]
[1756908976601,0.248,4423.4,4422.7,0.8054]
[1756908976797,0.248,4423.8,4423.2,0.8054]
[1756908976998,3.2078,4424.0,4423.5,0.3181]
[1756908977308,0.248,4424.5,4423.8,0.40681]
[1756908977515,0.248,4424.6,4424.0,0.3181]
[1756908978103,0.248,4424.5,4424.0,0.3181]
[1756908978307,4.0022,4424.9,4424.1,0.8054]
[1756908978507,4.0022,4424.9,4424.2,0.8054]
[1756908978703,3.2078,4424.9,4424.2,0.8054]
[1756908979004,0.7944,4425.4,4424.6,3.2078]
[1756908979005,3.2078,4425.4,4424.6,3.2078]
[1756908979204,3.2078,4425.4,4424.7,0.40674]
[1756908979510,3.2078,4425.4,4424.8,0.8054]
[1756908979806,3.2078,4425.4,4424.7,0.8054]
[1756908980010,0.7944,4425.3,4424.7,0.8054]
[1756908980402,3.2078,4425.4,4424.7,0.8054]
[1756908980601,0.7944,4426.6,4425.1,3.2078]
[1756908980807,3.2078,4426.7,4424.5,0.3181]
[1756908980808,3.2078,4426.7,4426.2,0.4066]
[1756908981005,3.2078,4427.2,4426.6,0.8054]
[1756908981304,0.7944,4427.7,4426.7,3.2078]
[1756908981607,0.7944,4427.4,4426.7,3.2078]
[1756908981808,0.7944,4427.9,4426.8,0.40654]
[1756908982011,3.2078,4428.1,4427.3,0.8054]
[1756908982305,0.248,4428.3,4427.5,0.3181]
[1756908982513,0.248,4428.3,4427.6,0.8054]
[1756908982703,1.1181,4428.0,4427.4,40.8]
[1756908982900,0.3237,4428.0,4427.4,40.8]
[1756908983098,0.7944,4427.8,4427.4,40.8]
[1756908983302,3.2078,4428.1,4427.5,0.8054]
[1756908983506,0.7944,4428.3,4427.6,0.8054]
[1756908983708,3.2078,4428.6,4427.7,0.8054]
[1756908983903,0.248,4428.5,4428.1,0.8054]
[1756908984108,0.7944,4428.8,4428.1,0.8054]
[1756908984309,0.248,4428.7,4428.1,0.8054]
[1756908984504,0.248,4428.7,4428.0,3.2078]
[1756908984706,3.2078,4428.4,4427.5,0.8054]
[1756908984903,3.2078,4428.4,4427.6,0.8054]
[1756908985112,0.248,4428.3,4427.6,0.8054]
[1756908985317,0.248,4428.3,4427.4,44.0078]
[1756908985318,0.7944,4428.2,4427.4,44.0078]
[1756908986214,0.3237,4427.5,4426.9,3.2078]
[1756908986406,0.7944,4427.3,4426.4,3.2078]
[1756908986608,3.4558,4427.4,4426.4,3.2078]
[1756908986814,0.7944,4427.3,4426.5,40.8]
[1756908987308,3.5315,4428.0,4427.0,0.8054]
[1756908987309,4.0022,4428.0,4427.0,0.8054]
[1756908987617,0.7944,4428.5,4427.5,1.1235]
[1756908987811,0.248,4428.4,4427.6,40.8]
[1756908988006,0.7944,4428.3,4427.9,3.2078]
[1756908988204,0.248,4428.4,4427.9,3.2078]
[1756908988411,0.22583001,4428.3,4427.3,3.2078]
[1756908988609,3.5315,4428.0,4426.8,3.2078]
[1756908988809,0.7944,4427.8,4426.8,3.2078]
[1756908989010,0.7944,4427.8,4427.3,3.2078]
[1756908989211,0.247,4427.7,4427.4,0.8054]
[1756908989516,0.247,4427.9,4427.3,4.0132]
[1756908989717,3.2078,4428.6,4427.5,0.3181]
[1756908989910,0.247,4428.5,4427.6,0.8054]
[1756908990210,0.7944,4428.4,4427.6,0.8054]
[1756908990411,4.54305957,4429.3,4427.9,3.2078]
[1756908990619,0.247,4428.8,4427.9,3.2078]
[1756908990809,0.7944,4428.7,4427.6,0.8054]
[1756908991517,0.7944,4428.7,4428.0,3.2078]
[1756908991918,0.247,4428.6,4428.0,3.2078]
[1756908992418,3.3778,4428.9,4428.1,0.8054]
[1756908992419,0.17,4428.9,4428.1,0.8054]
[1756908992618,0.17,4428.9,4428.6,0.8054]
[1756908992917,0.17,4428.9,4428.5,3.5259]
[1756908993314,0.17,4428.9,4428.6,0.8054]
[1756908993714,0.7944,4428.8,4428.0,4.0132]
[1756908993914,4.0022,4428.8,4428.0,4.0132]
[1756908994320,4.0022,4428.8,4428.1,40.8]
[1756908994517,0.247,4428.7,4428.1,40.8]
[1756908994719,0.247,4428.7,4428.0,4.0132]
[1756908994920,0.7944,4428.8,4428.0,4.0132]
[1756908995121,0.17,4428.9,4428.0,3.5259]
[1756908995422,0.247,4428.7,4428.1,0.8054]
[1756908996119,4.0022,4428.8,4428.1,0.8054]
[1756908996319,0.247,4428.7,4428.1,0.8054]
[1756908996516,4.0022,4428.8,4428.1,0.8054]
[1756908996717,0.247,4428.7,4428.1,0.8054]
[1756908997119,0.7944,4428.8,4428.1,0.8054]
[1756908997325,0.247,4428.7,4428.1,0.8054]
[1756908997628,0.7944,4428.6,4427.6,40.8]
[1756908997820,0.247,4428.7,4427.6,40.8]
[1756908997821,0.3237,4428.5,4427.6,40.8]
[1756908998126,1.1181,4428.5,4427.6,40.8]
[1756908999120,0.7944,4428.4,4427.6,40.8]
[1756908999423,0.7944,4428.2,4426.9,0.8054]
[1756908999728,0.247,4428.1,4427.1,0.8054]
[1756908999921,0.247,4428.0,4427.2,0.8054]
[1756909000722,3.2078,4427.8,4427.2,0.8054]
[1756909001416,0.247,4427.7,4427.1,40.8]
[1756909001616,0.247,4427.7,4427.1,41.6054]
[1756909001817,0.247,4427.7,4427.1,0.8054]
[1756909002018,4.86675957,4429.0,4427.0,0.3181]
[1756909002019,3.2078,4428.4,4427.4,1.21175]
[1756909002222,3.2078,4429.4,4428.1,3.2078]
[1756909002422,0.247,4428.8,4428.2,0.8053]
[1756909003023,0.8074,4429.7,4428.6,3.2078]
[1756909003222,3.2078,4429.9,4429.4,0.40626]
[1756909003428,0.2240909,4430.8,4429.8,3.2078]
[1756909003429,0.247,4430.3,4429.8,3.2078]
[1756909003726,0.247,4430.3,4429.0,0.3119]
[1756909003727,0.8074,4430.2,4429.3,4.0131]
[1756909003927,0.247,4430.3,4428.8,3.2078]
[1756909004229,3.5117,4430.0,4429.4,40.8]
[1756909004430,0.8074,4429.7,4429.4,40.8]
[1756909004728,0.247,4429.6,4429.4,41.6053]
[1756909005129,0.8074,4429.5,4429.4,40.8]
[1756909005428,0.247,4429.6,4429.4,40.8]
[1756909005618,3.2078,4430.0,4429.6,0.8053]
[1756909005821,0.3039,4431.5,4429.6,0.8053]
[1756909005822,3.2078,4430.5,4429.7,1.0523]
[1756909006024,0.8074,4431.1,4430.0,3.2078]
[1756909006222,0.8074,4430.9,4429.8,0.8053]
[1756909006428,0.3039,4430.5,4429.5,3.2078]
[1756909006625,3.2078,4430.2,4429.4,40.8]
[1756909006823,1.0544,4430.1,4429.4,40.8]
[1756909007023,0.3039,4430.0,4429.4,40.8]
[1756909007226,0.247,4429.9,4429.5,0.3119]
[1756909007431,0.247,4429.8,4429.5,0.3119]
[1756909007626,4.0152,4429.7,4429.4,40.8]
[1756909008127,0.8074,4429.5,4429.4,40.8]
[1756909008319,0.8074,4429.5,4428.4,0.8053]
[1756909008320,0.8074,4429.4,4428.4,0.8053]
[1756909008524,3.2078,4428.5,4427.5,1.1172]
[1756909008726,1.0544,4428.4,4427.5,0.8053]
[1756909008922,1.0544,4428.4,4426.8,3.2078]
[1756909008923,0.8074,4427.9,4426.8,3.2078]
[1756909009127,0.8074,4427.7,4426.8,3.2078]
[1756909009333,3.2078,4427.4,4426.8,44.0078]
[1756909009527,0.247,4427.6,4426.8,44.0078]
[1756909009832,0.48748472,4427.5,4426.8,44.0078]
[1756909010020,0.247,4427.6,4426.8,44.0078]
[1756909010220,0.48748983,4427.5,4426.8,44.0078]
[1756909010428,0.48748983,4427.4,4426.8,44.0078]
[1756909010631,0.8074,4427.2,4426.8,40.8]
[1756909010933,0.8074,4427.1,4426.8,40.8]
[1756909011140,3.4548,4427.4,4426.8,40.8]
[1756909011328,0.8074,4427.2,4426.8,40.8]
[1756909011521,1.29540382,4427.1,4426.3,3.2078]
[1756909011725,0.8074,4427.1,4426.3,3.2078]
[1756909011922,0.8074,4427.1,4426.4,40.8]
[1756909012121,3.2078,4427.4,4426.5,1.1172]
[1756909012326,0.73486116,4427.3,4426.5,1.1172]
[1756909012535,0.247,4427.3,4426.5,1.1172]
[1756909012728,0.247,4427.3,4427.0,0.8053]
[1756909013033,0.247,4427.2,4427.1,0.8053]
[1756909013332,3.2078,4427.8,4427.1,0.8053]
[1756909013533,0.73473757,4427.7,4427.1,0.8053]
[1756909013833,0.247,4427.7,4427.1,0.8053]
[1756909014033,0.48773422,4427.6,4427.3,0.8053]
[1756909014235,3.2078,4427.8,4427.2,40.8]
[1756909014527,0.3039,4427.5,4426.9,3.2078]
[1756909014732,4.0152,4427.3,4426.6,0.8053]
[1756909014934,4.0152,4427.3,4426.4,3.2078]
[1756909014935,0.8074,4427.1,4426.4,3.2078]
[1756909015125,3.2078,4426.8,4426.0,0.8053]
[1756909015326,0.73464669,4426.7,4426.0,0.8053]
[1756909015527,0.247,4426.7,4426.0,0.8053]
[1756909015926,0.247,4426.6,4426.0,0.8053]
[1756909016131,3.2078,4426.8,4426.0,0.8053]
[1756909016335,0.73443453,4426.7,4426.0,1.1172]
[1756909016634,0.247,4426.6,4426.0,0.8053]
[1756909017031,0.247,4426.6,4426.1,40.8]
[1756909017235,0.8074,4426.5,4426.1,41.6053]
[1756909017623,0.8074,4426.5,4426.1,0.8053]
[1756909017931,0.247,4426.6,4426.1,0.8053]
[1756909018135,1.0544,4426.6,4425.6,41.6053]
[1756909018333,3.93098797,4426.2,4425.6,41.6053]
[1756909018629,3.93098797,4426.2,4425.5,3.2078]
[1756909018630,0.247,4426.1,4425.5,3.2078]
[1756909018835,1.29450318,4426.0,4425.0,4.325]
[1756909019036,0.48710318,4425.9,4425.0,4.325]
[1756909019238,0.8074,4426.0,4425.1,40.8]
[1756909019728,0.247,4425.9,4425.2,0.8053]
[1756909020129,0.8074,4426.0,4425.2,0.8053]
[1756909020328,0.247,4425.8,4425.2,0.8053]
[1756909020529,3.2078,4426.3,4425.2,0.8053]
[1756909020732,0.247,4426.2,4425.2,0.8053]
[1756909020929,1.1113,4426.5,4425.2,0.8053]
[1756909021129,1.1113,4426.5,4425.1,40.8]
[1756909021130,0.247,4426.4,4425.7,3.2078]
[1756909021334,0.247,4426.4,4425.8,0.8053]
[1756909021931,3.2078,4426.8,4426.2,3.2078]
[1756909022135,0.247,4426.7,4426.3,0.8053]
[1756909022327,0.8074,4426.6,4426.2,3.2078]
[1756909022547,0.8074,4426.6,4425.8,0.8053]
[1756909023030,3.2078,4426.8,4425.8,0.8053]
[1756909023335,0.247,4426.7,4425.8,0.8053]
[1756909023537,0.8074,4426.3,4425.6,3.2078]
[1756909023733,0.247,4426.2,4425.6,3.2078]
[1756909025734,0.8074,4425.7,4424.6,4.0131]
[1756909025937,0.8074,4425.7,4424.1,3.2078]
[1756909025938,3.93098797,4424.7,4424.1,3.2078]
[1756909026129,0.8074,4424.5,4424.1,3.2078]
[1756909026334,0.247,4424.6,4424.1,3.2078]
[1756909026634,3.93098797,4424.2,4423.5,3.2078]
[1756909026838,0.8074,4424.0,4423.3,0.8053]
[1756909027032,4.2622,4424.1,4423.8,0.01996628]
[1756909027233,3.69383315,4424.0,4423.8,0.01996628]
[1756909027435,0.247,4423.9,4423.8,0.82526628]
[1756909027733,0.247,4424.4,4423.8,0.82526628]
[1756909027934,4.0152,4425.2,4424.3,0.8053]
[1756909028137,0.247,4425.1,4424.3,0.8053]
[1756909028532,4.0152,4425.2,4424.3,0.8053]
[1756909028727,0.247,4425.1,4424.3,0.8053]
[1756909028935,0.247,4425.0,4424.7,0.01996628]
[1756909029134,0.247,4425.0,4424.8,0.8053]
[1756909029337,33.3504,4425.7,4424.7,3.22776628]
[1756909029536,0.247,4425.6,4424.8,0.8053]
[1756909030138,0.247,4425.6,4425.2,0.01996628]
[1756909030340,0.8074,4425.5,4425.2,0.01996628]
[1756909030741,0.8074,4425.5,4425.2,0.82526628]
[1756909031046,0.8074,4425.5,4425.3,0.01996628]
[1756909031739,4.1996,4425.4,4425.3,0.01996628]
[1756909032329,4.1996,4425.4,4424.2,3.2078]
[1756909032330,7.4548,4425.4,4424.2,3.2078]
[1756909032530,0.7448,4424.9,4424.3,40.8]
[1756909032739,0.247,4424.8,4424.3,40.8]
[1756909032936,3.93098797,4424.5,4424.2,0.7556]
[1756909033138,0.7448,4424.3,4423.2,3.2078]
[1756909033339,0.7448,4424.1,4423.3,0.7556]
[1756909033548,0.247,4424.2,4423.7,0.01415549]
[1756909033549,0.7448,4423.8,4423.7,0.01415549]
[1756909033845,0.9918,4423.8,4423.7,0.01415549]
[1756909034734,0.7448,4424.3,4423.7,0.01415549]
[1756909034935,0.7448,4424.1,4423.7,0.01415549]
[1756909035135,4.67578797,4423.8,4423.7,0.01415549]
[1756909035339,4.92278797,4423.8,4423.7,0.01415549]
[1756909035544,0.9918,4423.8,4423.7,0.01415549]
[1756909036150,3.2078,4423.9,4423.7,0.01415549]
[1756909036344,0.7448,4424.4,4423.7,0.01415549]
[1756909036647,0.247,4424.3,4424.1,0.7556]
[1756909036848,0.7448,4424.9,4424.2,3.2078]
[1756909037044,0.247,4424.8,4424.3,0.7556]
[1756909037252,0.247,4424.7,4424.2,3.2078]
[1756909037443,0.247,4424.6,4424.2,3.2078]
[1756909037745,0.247,4424.5,4424.4,0.76975549]
[1756909038147,3.2078,4425.3,4424.6,0.7556]
[1756909038343,0.247,4425.2,4424.6,0.7556]
[1756909038543,0.247,4425.1,4424.6,0.7556]
[1756909038743,3.93098797,4425.6,4424.9,0.7556]
[1756909038943,0.247,4425.5,4424.9,0.7556]
[1756909039245,33.2878,4425.7,4424.9,0.7556]
[1756909039448,32.543,4425.7,4425.5,0.7556]
[1756909039651,0.23284451,4425.6,4425.5,0.7556]
[1756909040046,0.97764451,4425.6,4424.9,0.7556]
[1756909040350,0.7448,4425.4,4424.8,3.2078]
[1756909040551,0.247,4425.3,4424.8,3.2078]
[1756909040749,32.543,4425.7,4424.9,0.7556]
[1756909040750,0.247,4425.2,4424.9,0.7556]
[1756909041045,0.247,4425.1,4424.8,3.2078]
[1756909041245,0.247,4425.1,4424.9,0.7556]
[1756909041550,0.247,4425.0,4424.9,0.7556]
[1756909042447,0.247,4425.0,4424.8,3.2078]
[1756909042644,0.9918,4425.0,4424.3,0.7556]
[1756909042842,1.304,4425.0,4424.3,0.7556]
[1756909043042,3.93098797,4424.6,4424.2,3.2078]
[1756909043246,0.7448,4424.4,4424.2,44.0078]
[1756909043449,1.304,4424.5,4423.8,0.7556]
[1756909043842,0.5592,4424.5,4423.9,40.8]
[1756909044044,0.7448,4424.4,4423.9,40.8]
[1756909044241,0.5592,4424.5,4423.9,40.8]
[1756909044441,0.5592,4424.5,4423.6,3.2078]
[1756909044442,1.23238227,4424.4,4423.6,3.2078]
[1756909044751,0.7448,4423.9,4423.0,3.2078]
[1756909044951,0.7448,4423.7,4423.0,3.2078]
[1756909045148,0.7448,4423.4,4423.0,3.2078]
[1756909045347,0.247,4423.3,4422.8,0.1718349]
[1756909045545,0.48773114,4423.2,4422.8,0.1718349]
[1756909045741,3.93098797,4423.3,4422.8,0.1718349]
[1756909045952,0.247,4423.1,4422.8,0.1718349]
[1756909046152,0.7448,4422.9,4422.8,0.1718349]
[1756909046448,1.23254003,4422.9,4422.8,0.1718349]
[1756909046748,1.23254003,4422.9,4421.7,3.9634]
[1756909046749,4.48774003,4422.9,4421.7,3.9634]
[1756909046950,0.7448,4422.7,4421.7,44.0078]
[1756909047144,0.73474003,4422.6,4421.8,0.7556]
[1756909047345,0.247,4422.5,4421.8,0.7556]
[1756909047643,0.247,4422.6,4422.5,0.2945]
[1756909047844,0.247,4422.6,4422.5,1.0501]
[1756909048041,3.2078,4423.6,4423.0,0.2945]
[1756909048352,0.247,4423.5,4423.0,0.2945]
[1756909048653,1.21217203,4424.9,4423.0,0.2945]
[1756909048654,1.58937938,4425.9,4423.5,3.5023]
[1756909048847,3.09877297,4427.0,4425.7,3.2078]
[1756909048848,0.48727412,4425.8,4425.7,3.2078]
[1756909049049,0.7448,4427.3,4425.7,48.18578797]
[1756909049356,0.4192,4427.5,4425.7,48.18578797]
[1756909049357,0.4192,4427.5,4427.0,3.2078]
[1756909049550,0.7448,4427.1,4427.0,3.2078]
[1756909050152,0.247,4427.2,4427.0,3.2078]
[1756909050350,0.7448,4428.3,4427.1,4.0]
[1756909050556,36.49298797,4429.3,4427.9,3.2078]
[1756909050557,0.247,4428.6,4427.9,3.2078]
[1756909050744,0.247,4428.6,4428.5,3.2078]
[1756909050952,0.9918,4428.6,4428.5,3.2078]
[1756909051150,2.20397203,4428.6,4428.5,3.2078]
[1756909051450,0.7448,4428.5,4427.9,3.2078]
[1756909051657,5.77137203,4428.6,4427.9,3.2078]
[1756909051658,1.057,4428.0,4427.9,3.2078]
[1756909051847,2.51617203,4428.0,4427.9,3.2078]
[1756909052255,2.51617203,4428.0,4427.9,3.56086941]
[1756909052856,2.26917203,4428.0,4427.9,3.56086941]
[1756909053051,2.51617203,4428.0,4427.9,3.56086941]
[1756909054258,2.51617203,4428.0,4427.9,3.2078]
[1756909054650,1.95697203,4428.0,4427.9,3.2078]
[1756909054851,2.20397203,4428.0,4427.9,3.2078]
[1756909055353,1.95697203,4428.0,4427.9,3.2078]
[1756909055655,2.51617203,4428.0,4427.9,3.2078]
[1756909055858,6.51617203,4428.0,4427.9,3.2078]
[1756909056458,2.26917203,4428.0,4427.9,3.2078]
[1756909056659,2.51517203,4428.0,4427.2,3.2078]
[1756909056960,1.21217203,4427.6,4427.2,3.2078]
[1756909057257,0.246,4427.5,4427.3,40.8]
[1756909057656,0.3122,4428.6,4427.3,40.8]
[1756909057856,1.95697203,4428.4,4428.3,3.2078]
[1756909058055,1.21217203,4428.6,4428.3,3.2078]
[1756909058256,0.7448,4429.1,4428.3,3.2078]
[1756909058557,32.562,4429.3,4428.8,3.2078]
[1756909058748,0.7448,4429.8,4428.8,3.2078]
[1756909058952,0.3122,4430.5,4429.7,7.13878797]
[1756909059151,0.7448,4431.6,4430.4,44.0078]
[1756909059453,0.7448,4432.4,4431.4,3.2078]
[1756909059657,0.246,4432.3,4431.9,7.13878797]
[1756909059956,0.3122,4432.2,4431.9,3.2078]
[1756909060158,1.95697203,4432.0,4431.9,3.2078]
[1756909060754,2.20297203,4432.0,4431.9,3.2078]
[1756909062352,4.52,4433.0,4431.9,7.2078]
[1756909062353,1.0,4433.0,4431.9,7.2078]
[1756909062554,1.0,4433.0,4432.9,3.2078]
[1756909062756,1.0744,4434.6,4432.9,7.2078]
[1756909062958,1.17907203,4434.3,4433.7,44.0078]
[1756909063153,1.0744,4434.6,4433.7,44.0078]
[1756909063154,1.0021,4434.6,4433.7,44.0078]
[1756909063354,1.17907203,4434.4,4433.7,44.0078]
[1756909063852,1.93517203,4434.4,4434.2,3.2078]
[1756909064251,1.17907203,4434.4,4434.2,3.2078]
[1756909064461,0.246,4434.3,4434.2,3.2078]
[1756909064660,1.17907203,4434.6,4434.2,3.2078]
[1756909064861,0.246,4434.5,4434.2,3.2078]
[1756909065262,1.0021,4434.5,4434.2,3.2078]
[1756909065568,0.246,4434.5,4434.2,3.2078]
[1756909065862,1.17907203,4434.3,4434.2,3.2078]
[1756909066066,2.18117203,4434.3,4434.2,3.2078]
[1756909066661,1.93517203,4434.3,4434.2,3.2078]
[1756909067063,2.18117203,4434.3,4434.2,3.2078]
[1756909068877,2.18117203,4434.3,4433.7,40.8]
[1756909069072,1.0021,4434.3,4433.7,40.8]
[1756909069271,0.246,4434.6,4434.1,3.2078]
[1756909069474,1.17907203,4434.3,4434.1,3.2078]
[1756909069673,0.7561,4434.2,4434.1,3.2078]
[1756909069972,0.3183,4434.0,4433.6,3.2078]
[1756909070166,1.0021,4433.9,4433.6,3.2078]
[1756909070372,0.7561,4433.8,4433.6,3.2078]
[1756909070572,0.7561,4433.8,4433.6,44.0078]
[1756909070775,0.3183,4434.0,4433.6,44.0078]
[1756909070976,0.246,4433.9,4433.6,44.0078]
[1756909071374,0.7561,4433.8,4433.6,44.0078]
[1756909071580,0.7561,4434.3,4433.6,44.0078]
[1756909071880,1.0744,4435.2,4434.2,3.2078]
[1756909072072,1.0744,4435.2,4433.6,45.81478]
[1756909072073,0.7561,4435.2,4435.1,3.2078]
[1756909072474,1.0021,4435.2,4435.1,44.0078]
[1756909072674,1.0021,4435.2,4435.1,40.8]
[1756909073672,5.0021,4435.2,4435.1,40.8]
[1756909074675,4.246,4435.2,4434.0,3.2078]
[1756909074876,0.7561,4434.9,4434.0,3.2078]
[1756909075179,0.7561,4434.9,4434.1,40.8]
[1756909075383,0.246,4434.8,4434.1,40.8]
[1756909075576,0.7561,4434.9,4434.5,3.2078]
[1756909075577,0.246,4434.7,4434.5,3.2078]
[1756909075777,0.7561,4434.9,4434.5,3.2078]
[1756909075977,0.246,4434.8,4434.1,40.8]
[1756909076181,0.7561,4434.7,4434.1,40.8]
[1756909076382,0.3183,4434.5,4434.1,40.8]
[1756909076584,0.3183,4434.0,4433.5,3.2078]
[1756909076877,0.3183,4434.0,4432.9,3.2078]
[1756909076878,0.246,4433.9,4432.9,3.2078]
[1756909077080,0.7561,4433.4,4432.4,3.2078]
[1756909077379,0.3183,4433.5,4432.4,3.2078]
[1756909077380,0.7561,4432.5,4432.4,3.2078]
[1756909077677,1.0021,4432.5,4432.4,3.2078]
[1756909079782,1.0021,4432.5,4431.5,44.0078]
[1756909080082,0.246,4432.4,4431.5,44.0078]
[1756909080582,0.246,4432.3,4432.1,0.7932]
[1756909081279,1.0744,4433.0,4432.0,4.001]
[1756909081478,1.0744,4433.0,4431.5,40.8]
[1756909081479,0.246,4432.9,4432.5,3.2078]
[1756909081774,0.7561,4432.7,4432.0,3.2078]
[1756909081979,1.0744,4432.5,4431.5,44.0078]
[1756909082175,0.7561,4432.5,4431.6,0.7932]
[1756909082484,0.246,4432.4,4431.6,0.7932]
[1756909082676,0.246,4432.3,4431.6,0.7932]
[1756909083182,0.246,4432.3,4431.5,44.0078]
[1756909083183,0.7561,4432.2,4431.5,44.0078]
[1756909083378,0.7561,4432.2,4431.5,3.2078]
[1756909083788,3.9639,4432.2,4431.5,3.2078]
[1756909084081,35.7078,4432.2,4431.5,3.2078]
[1756909084283,0.3183,4432.0,4431.5,3.2078]
[1756909084472,0.7561,4431.9,4431.5,3.2078]
[1756909084677,0.7561,4431.8,4430.9,3.2078]
[1756909084874,0.7561,4431.4,4430.9,3.2078]
[1756909085274,0.246,4431.3,4431.0,0.7932]
[1756909085576,0.3183,4432.0,4431.0,0.7932]
[1756909085787,0.246,4431.9,4431.0,1.067]
[1756909085989,0.246,4431.8,4431.5,0.7932]
[1756909086185,0.7561,4431.7,4430.9,3.2078]
[1756909086880,0.246,4431.8,4430.9,3.2078]
[1756909087481,0.7561,4431.7,4430.9,3.2078]
[1756909087686,0.246,4431.6,4430.9,3.2078]
[1756909087888,0.246,4431.6,4431.0,0.7932]
[1756909088089,36.4639,4432.2,4431.0,0.7932]
[1756909088391,0.246,4432.1,4431.0,0.7932]
[1756909088779,0.3183,4432.0,4431.0,0.7932]
[1756909088984,0.7561,4431.9,4431.0,0.7932]
[1756909089588,0.3183,4431.5,4430.4,0.7932]
[1756909089790,0.246,4431.4,4430.4,0.7932]
[1756909090392,0.246,4431.3,4430.9,0.7932]
[1756909090884,0.7561,4431.6,4430.9,0.7932]
[1756909091084,33.2561,4432.2,4430.9,0.7932]
[1756909091290,0.246,4432.1,4431.1,0.7932]
[1756909091588,0.246,4432.0,4431.2,40.8]
[1756909091785,33.2561,4432.2,4431.2,40.8]
[1756909091994,0.246,4432.1,4431.2,40.8]
[1756909092187,33.2561,4432.2,4431.2,40.8]
[1756909092388,0.246,4432.1,4431.2,40.8]
[1756909092985,3.2078,4432.3,4431.3,3.2078]
[1756909093183,0.246,4432.3,4431.9,0.7981]
[1756909093393,0.7524,4432.2,4431.8,3.2078]
[1756909093590,3.2078,4433.3,4432.1,0.7981]
[1756909093788,3.2078,4433.3,4432.7,0.406]
[1756909093991,3.2078,4433.3,4432.8,0.7981]
[1756909094192,3.2078,4433.9,4432.9,0.40598]
[1756909094395,0.7524,4434.9,4433.6,0.7981]
[1756909094698,0.246,4434.8,4433.6,0.7981]
[1756909094892,0.246,4434.8,4434.0,3.2078]
[1756909095090,0.246,4434.7,4434.1,0.7981]
[1756909095286,0.246,4434.6,4434.1,0.7981]
[1756909095491,0.246,4434.6,4434.1,1.20397]
[1756909095697,32.507,4435.1,4434.6,0.7981]
[1756909095893,0.246,4435.6,4434.6,0.7981]
[1756909096094,0.3164,4436.5,4435.1,3.2078]
[1756909096095,0.246,4435.7,4435.1,3.2078]
[1756909096289,0.246,4435.7,4435.3,0.7981]
[1756909096489,0.246,4435.7,4435.6,4.0059]
[1756909097090,0.246,4435.7,4435.6,44.8059]
[1756909097295,0.246,4436.4,4435.7,0.7981]
[1756909097593,0.246,4436.4,4435.6,44.0078]
[1756909097594,0.7524,4436.3,4435.6,44.0078]
[1756909097795,0.7524,4435.9,4435.6,40.8]
[1756909097995,0.246,4435.8,4435.6,40.8]
[1756909098294,0.7524,4435.7,4434.4,4.0059]
[1756909098691,0.7524,4435.7,4434.5,40.8]
[1756909098995,0.7524,4435.7,4434.6,0.7981]
[1756909098996,0.246,4435.6,4434.6,0.7981]
[1756909099200,0.7524,4435.4,4434.6,0.7981]
[1756909099498,0.246,4435.3,4434.6,0.7981]
[1756909100297,0.246,4435.3,4435.0,3.2078]
[1756909100694,0.7524,4435.2,4435.0,3.2078]
[1756909100893,0.246,4435.3,4434.6,0.7981]
[1756909101095,0.222,4435.3,4434.6,0.7981]
[1756909101297,0.7524,4435.9,4434.6,0.7981]
[1756909101695,0.246,4436.1,4435.6,4.0059]
[1756909101900,0.246,4436.1,4435.7,0.7981]
[1756909102095,0.246,4436.1,4435.6,3.2078]
[1756909102300,0.246,4436.1,4435.7,0.7981]
[1756909102692,0.246,4436.1,4435.1,0.7981]